Workbook

Sheet CALC (hidden)
A1: Emision | B1: NV42 | E1: Fecha Fin | F1: Dxv | G1: Plazo Cupon | H1: Flujo Cupón | I1: Amort | J1: VP
A2: Contrato | B2: DC15 | E2: 2013-12-19 | F2: =IF(OR(E2-$B$3<=0,E2>$B$4),"",E2-$B$3) -> 
A3: Fecha Valuación | B3: =DIA_VALUACION -> 2015-12-30 | D3: =IF(F3=MIN($F:$F),"VIG","") ->  | E3: 2014-06-19 | G3: =+E3-E2 -> 182 | H3: =IF(F3<=0,0,$B$6/36000*G3*100) -> 3.918055556 | I3: =IF(F3=MAX($F:$F),100,0) -> 0 | J3: =IF(F3="",0,(H3+I3)/(1+$B$7*182/36000)^(F3/182)) -> 0 | L3: =IF(F3="","",IF(F3=MIN($F:$F),1,L2+1)) ->  | M3: =IFERROR(H3/(1+$B$11*F3/36000)+SUM($M$2:$M2),0) -> 0
A4: Vencimiento | B4: =VLOOKUP($B$1,CTOS_CASH,2,0) -> 2042-11-13 | D4: =IF(F4=MIN($F:$F),"VIG","") ->  | E4: 2014-12-18 | G4: =+E4-E3 -> 182 | H4: 3.918055556 | I4: =IF(F4=MAX($F:$F),100,0) -> 0 | J4: 0 | K4: =IFERROR(H4/(1+$B$11*F4/36000),"") ->  | M4: =IFERROR(H4/(1+$B$11*F4/36000)+SUM($M$2:$M3),0) -> 0
A5: Venc. Futuro | B5: =VLOOKUP($B$2,CTOS_FUT,2,0) ->  | E5: 2015-06-18 | G5: 182 | H5: 3.918055556 | I5: 0 | J5: 0 | M5: =IFERROR(H5/(1+$B$11*F5/36000)+SUM($M$2:$M4),0) -> 0
A6: Tasa Cupón | B6: =VLOOKUP($B$1,CTOS_CASH,3,0) -> 7.75 | E6: 2015-12-17 | G6: 182 | H6: 3.918055556 | I6: 0 | J6: 0 | K6: =IFERROR(H6/(1+$B$11*F6/36000),"") ->  | M6: =IFERROR(H6/(1+$B$11*F6/36000)+SUM($M$2:$M5),0) -> 0
A7: Tasa Yield | B7: 6.868253473 | D7: VIG | E7: 2016-06-16 | F7: 169 | G7: 182 | H7: 3.918055556 | I7: 0 | J7: 3.795818298 | L7: 1 | M7: =IFERROR(H7/(1+$B$11*F7/36000)+SUM($M$2:$M6),0) -> 0
A8: Precio Sucio | B8: =SUM($J:$J) -> 111.0761399 | E8: 2016-12-15 | F8: 351 | G8: 182 | H8: 3.918055556 | I8: 0 | J8: 3.668439665 | L8: 2 | M8: =IFERROR(H8/(1+$B$11*F8/36000)+SUM($M$2:$M7),0) -> 0
A9: Precio Limpio | B9: =+B8-B10 -> 110.7962788 | E9: 2017-06-15 | F9: 533 | G9: 182 | H9: 3.918055556 | I9: 0 | J9: 3.545335556 | L9: 3 | M9: =IFERROR(H9/(1+$B$11*F9/36000)+SUM($M$2:$M8),0) -> 0
A10: Intereses | B10: =100*$B$6/36000*(VLOOKUP("VIG",$D:$G,4,0)-VLOOKUP("VIG",$D:$G,3,0)) -> 0.2798611111 | E10: 2017-12-14 | F10: 715 | G10: 182 | H10: 3.918055556 | I10: 0 | J10: 3.426362529 | L10: 4 | M10: =IFERROR(H10/(1+$B$11*F10/36000)+SUM($M$2:$M9),0) -> 0
A11: Fondeo | B11: =VLOOKUP($B$2,TABLA_FONDEO,3,0) ->  | E11: 2018-06-14 | F11: 897 | G11: 182 | H11: 3.918055556 | I11: 0 | J11: 3.311381953 | L11: 5 | M11: =IFERROR(H11/(1+$B$11*F11/36000)+SUM($M$2:$M10),0) -> 0
A12: Cupones | B12: =VLOOKUP($B$2,CTOS_FUT,3,0) ->  | E12: 2018-12-13 | F12: 1079 | G12: 182 | H12: 3.918055556 | I12: 0 | J12: 3.200259852 | L12: 6 | M12: =IFERROR(H12/(1+$B$11*F12/36000)+SUM($M$2:$M11),0) -> 0
A13: VP Cupón | B13: =IFERROR(VLOOKUP($B$12,$L:$M,2,0),0) -> 0 | E13: 2019-06-13 | F13: 1261 | G13: 182 | H13: 3.918055556 | I13: 0 | J13: 3.092866744 | L13: 7 | M13: =IFERROR(H13/(1+$B$11*F13/36000)+SUM($M$2:$M12),0) -> 0
A14: DXV FUT | B14: =+B5-B3 ->  | E14: 2019-12-11 | F14: 1442 | G14: 181 | H14: 3.896527778 | I14: 0 | J14: 2.973211556 | L14: 8 | M14: =IFERROR(H14/(1+$B$11*F14/36000)+SUM($M$2:$M13),0) -> 0
A15: Acarreo | B15: =(B8-B13)*(1+B11*B14/36000) ->  | E15: 2020-06-11 | F15: 1625 | G15: 183 | H15: 3.939583333 | I15: 0 | J15: 2.904643532 | L15: 9 | M15: =IFERROR(H15/(1+$B$11*F15/36000)+SUM($M$2:$M14),0) -> 0
A16: Tasa Yield | B16: =CALCF!B4 -> 6.87555796 | E16: 2020-12-10 | F16: 1807 | G16: 182 | H16: 3.918055556 | I16: 0 | J16: 2.791830875 | L16: 10 | M16: =IFERROR(H16/(1+$B$11*F16/36000)+SUM($M$2:$M15),0) -> 0
E17: 2021-06-10 | F17: 1989 | G17: 182 | H17: 3.918055556 | I17: 0 | J17: 2.698143672 | L17: 11 | M17: =IFERROR(H17/(1+$B$11*F17/36000)+SUM($M$2:$M16),0) -> 0
E18: 2021-12-09 | F18: 2171 | G18: 182 | H18: 3.918055556 | I18: 0 | J18: 2.607600389 | L18: 12 | M18: =IFERROR(H18/(1+$B$11*F18/36000)+SUM($M$2:$M17),0) -> 0
E19: 2022-06-09 | F19: 2353 | G19: 182 | H19: 3.918055556 | I19: 0 | J19: 2.520095522 | L19: 13 | M19: =IFERROR(H19/(1+$B$11*F19/36000)+SUM($M$2:$M18),0) -> 0
E20: 2022-12-08 | F20: 2535 | G20: 182 | H20: 3.918055556 | I20: 0 | J20: 2.435527112 | L20: 14 | M20: =IFERROR(H20/(1+$B$11*F20/36000)+SUM($M$2:$M19),0) -> 0
E21: 2023-06-08 | F21: 2717 | G21: 182 | H21: 3.918055556 | I21: 0 | J21: 2.353796615 | L21: 15 | M21: =IFERROR(H21/(1+$B$11*F21/36000)+SUM($M$2:$M20),0) -> 0
E22: 2023-12-07 | F22: 2899 | G22: 182 | H22: 3.918055556 | I22: 0 | J22: 2.2748088 | L22: 16 | M22: =IFERROR(H22/(1+$B$11*F22/36000)+SUM($M$2:$M21),0) -> 0
E23: 2024-06-06 | F23: 3081 | G23: 182 | H23: 3.918055556 | I23: 0 | J23: 2.198471628 | L23: 17 | M23: =IFERROR(H23/(1+$B$11*F23/36000)+SUM($M$2:$M22),0) -> 0
E24: 2024-12-05 | F24: 3263 | G24: 182 | H24: 3.918055556 | I24: 0 | J24: 2.12469615 | L24: 18 | M24: =IFERROR(H24/(1+$B$11*F24/36000)+SUM($M$2:$M23),0) -> 0
E25: 2025-06-05 | F25: 3445 | G25: 182 | H25: 3.918055556 | I25: 0 | J25: 2.053396401 | L25: 19 | M25: =IFERROR(H25/(1+$B$11*F25/36000)+SUM($M$2:$M24),0) -> 0
E26: 2025-12-04 | F26: 3627 | G26: 182 | H26: 3.918055556 | I26: 0 | J26: 1.984489303 | L26: 20 | M26: =IFERROR(H26/(1+$B$11*F26/36000)+SUM($M$2:$M25),0) -> 0
E27: 2026-06-04 | F27: 3809 | G27: 182 | H27: 3.918055556 | I27: 0 | J27: 1.917894563 | L27: 21 | M27: =IFERROR(H27/(1+$B$11*F27/36000)+SUM($M$2:$M26),0) -> 0
E28: 2026-12-03 | F28: 3991 | G28: 182 | H28: 3.918055556 | I28: 0 | J28: 1.853534583 | L28: 22 | M28: =IFERROR(H28/(1+$B$11*F28/36000)+SUM($M$2:$M27),0) -> 0
E29: 2027-06-03 | F29: 4173 | G29: 182 | H29: 3.918055556 | I29: 0 | J29: 1.791334372 | L29: 23 | M29: =IFERROR(H29/(1+$B$11*F29/36000)+SUM($M$2:$M28),0) -> 0
E30: 2027-12-02 | F30: 4355 | G30: 182 | H30: 3.918055556 | I30: 0 | J30: 1.731221452 | L30: 24 | M30: =IFERROR(H30/(1+$B$11*F30/36000)+SUM($M$2:$M29),0) -> 0
E31: 2028-06-01 | F31: 4537 | G31: 182 | H31: 3.918055556 | I31: 0 | J31: 1.673125778 | L31: 25 | M31: =IFERROR(H31/(1+$B$11*F31/36000)+SUM($M$2:$M30),0) -> 0
E32: 2028-11-30 | F32: 4719 | G32: 182 | H32: 3.918055556 | I32: 0 | J32: 1.616979657 | L32: 26 | M32: =IFERROR(H32/(1+$B$11*F32/36000)+SUM($M$2:$M31),0) -> 0
E33: 2029-05-31 | F33: 4901 | G33: 182 | H33: 3.918055556 | I33: 0 | J33: 1.562717666 | L33: 27 | M33: =IFERROR(H33/(1+$B$11*F33/36000)+SUM($M$2:$M32),0) -> 0
E34: 2029-11-29 | F34: =IF(OR(E34-$B$3<=0,E34>$B$4),"",E34-$B$3) -> 5083 | G34: 182 | H34: 3.918055556 | I34: 0 | J34: 1.510276579 | L34: 28 | M34: =IFERROR(H34/(1+$B$11*F34/36000)+SUM($M$2:$M33),0) -> 0
E35: 2030-05-30 | F35: 5265 | G35: 182 | H35: =IF(F35<=0,0,$B$6/36000*G35*100) -> 3.918055556 | I35: 0 | J35: =IF(F35="",0,(H35+I35)/(1+$B$7*182/36000)^(F35/182)) -> 1.459595289 | L35: =IF(F35="","",IF(F35=MIN($F:$F),1,L34+1)) -> 29 | M35: =IFERROR(H35/(1+$B$11*F35/36000)+SUM($M$2:$M34),0) -> 0
E36: 2030-11-28 | F36: 5447 | G36: 182 | H36: 3.918055556 | I36: 0 | J36: 1.410614744 | K36: =IFERROR(H36/(1+$B$11*F36/36000),"") ->  | L36: 30 | M36: =IFERROR(H36/(1+$B$11*F36/36000)+SUM($M$2:$M35),0) -> 0
E37: 2031-05-29 | F37: 5629 | G37: 182 | H37: 3.918055556 | I37: 0 | J37: 1.363277868 | L37: 31 | M37: =IFERROR(H37/(1+$B$11*F37/36000)+SUM($M$2:$M36),0) -> 0
E38: 2031-11-27 | F38: 5811 | G38: 182 | H38: 3.918055556 | I38: 0 | J38: 1.317529506 | L38: 32 | M38: =IFERROR(H38/(1+$B$11*F38/36000)+SUM($M$2:$M37),0) -> 0
E39: 2032-05-27 | F39: 5993 | G39: 182 | H39: 3.918055556 | I39: 0 | J39: 1.27331635 | L39: 33 | M39: =IFERROR(H39/(1+$B$11*F39/36000)+SUM($M$2:$M38),0) -> 0
E40: 2032-11-25 | F40: 6175 | G40: 182 | H40: 3.918055556 | I40: 0 | J40: 1.230586882 | L40: 34 | M40: =IFERROR(H40/(1+$B$11*F40/36000)+SUM($M$2:$M39),0) -> 0
E41: 2033-05-26 | F41: 6357 | G41: 182 | H41: 3.918055556 | I41: 0 | J41: 1.189291314 | L41: 35 | M41: =IFERROR(H41/(1+$B$11*F41/36000)+SUM($M$2:$M40),0) -> 0
E42: 2033-11-24 | F42: 6539 | G42: 182 | H42: 3.918055556 | I42: 0 | J42: 1.149381526 | L42: 36 | M42: =IFERROR(H42/(1+$B$11*F42/36000)+SUM($M$2:$M41),0) -> 0
E43: 2034-05-25 | F43: 6721 | G43: 182 | H43: 3.918055556 | I43: 0 | J43: 1.110811017 | L43: 37 | M43: =IFERROR(H43/(1+$B$11*F43/36000)+SUM($M$2:$M42),0) -> 0
E44: 2034-11-23 | F44: 6903 | G44: 182 | H44: 3.918055556 | I44: 0 | J44: 1.073534841 | L44: 38 | M44: =IFERROR(H44/(1+$B$11*F44/36000)+SUM($M$2:$M43),0) -> 0
E45: 2035-05-24 | F45: 7085 | G45: 182 | H45: 3.918055556 | I45: 0 | J45: 1.037509566 | L45: 39 | M45: =IFERROR(H45/(1+$B$11*F45/36000)+SUM($M$2:$M44),0) -> 0
E46: 2035-11-22 | F46: 7267 | G46: 182 | H46: 3.918055556 | I46: 0 | J46: 1.002693213 | L46: 40 | M46: =IFERROR(H46/(1+$B$11*F46/36000)+SUM($M$2:$M45),0) -> 0
E47: 2036-05-22 | F47: 7449 | G47: 182 | H47: 3.918055556 | I47: 0 | J47: 0.9690452137 | L47: 41 | M47: =IFERROR(H47/(1+$B$11*F47/36000)+SUM($M$2:$M46),0) -> 0
E48: 2036-11-20 | F48: 7631 | G48: 182 | H48: 3.918055556 | I48: 0 | J48: 0.9365263615 | L48: 42 | M48: =IFERROR(H48/(1+$B$11*F48/36000)+SUM($M$2:$M47),0) -> 0
E49: 2037-05-21 | F49: 7813 | G49: 182 | H49: 3.918055556 | I49: 0 | J49: 0.9050987646 | L49: 43 | M49: =IFERROR(H49/(1+$B$11*F49/36000)+SUM($M$2:$M48),0) -> 0
E50: 2037-11-19 | F50: 7995 | G50: 182 | H50: 3.918055556 | I50: 0 | J50: 0.8747258031 | L50: 44 | M50: =IFERROR(H50/(1+$B$11*F50/36000)+SUM($M$2:$M49),0) -> 0
E51: 2038-05-20 | F51: 8177 | G51: 182 | H51: 3.918055556 | I51: 0 | J51: 0.845372086 | L51: 45 | M51: =IFERROR(H51/(1+$B$11*F51/36000)+SUM($M$2:$M50),0) -> 0
E52: 2038-11-18 | F52: 8359 | G52: 182 | H52: 3.918055556 | I52: 0 | J52: 0.8170034097 | L52: 46 | M52: =IFERROR(H52/(1+$B$11*F52/36000)+SUM($M$2:$M51),0) -> 0
E53: 2039-05-19 | F53: 8541 | G53: 182 | H53: 3.918055556 | I53: 0 | J53: 0.7895867188 | L53: 47 | M53: =IFERROR(H53/(1+$B$11*F53/36000)+SUM($M$2:$M52),0) -> 0
E54: 2039-11-17 | F54: 8723 | G54: 182 | H54: 3.918055556 | I54: 0 | J54: 0.7630900668 | L54: 48 | M54: =IFERROR(H54/(1+$B$11*F54/36000)+SUM($M$2:$M53),0) -> 0
E55: 2040-05-17 | F55: 8905 | G55: 182 | H55: 3.918055556 | I55: 0 | J55: 0.7374825794 | L55: 49 | M55: =IFERROR(H55/(1+$B$11*F55/36000)+SUM($M$2:$M54),0) -> 0
E56: 2040-11-15 | F56: 9087 | G56: 182 | H56: 3.918055556 | I56: 0 | J56: 0.7127344183 | L56: 50 | M56: =IFERROR(H56/(1+$B$11*F56/36000)+SUM($M$2:$M55),0) -> 0
E57: 2041-05-16 | F57: 9269 | G57: 182 | H57: 3.918055556 | I57: 0 | J57: 0.6888167467 | L57: 51 | M57: =IFERROR(H57/(1+$B$11*F57/36000)+SUM($M$2:$M56),0) -> 0
E58: 2041-11-14 | F58: 9451 | G58: 182 | H58: 3.918055556 | I58: 0 | J58: 0.6657016953 | L58: 52 | M58: =IFERROR(H58/(1+$B$11*F58/36000)+SUM($M$2:$M57),0) -> 0
E59: 2042-05-15 | F59: 9633 | G59: 182 | H59: 3.918055556 | I59: 0 | J59: 0.6433623299 | L59: 53 | M59: =IFERROR(H59/(1+$B$11*F59/36000)+SUM($M$2:$M58),0) -> 0
E60: 2042-11-13 | F60: 9815 | G60: 182 | H60: 3.918055556 | I60: 100 | J60: 16.4911908 | L60: 54 | M60: =IFERROR(H60/(1+$B$11*F60/36000)+SUM($M$2:$M59),0) -> 0

Sheet CALCF (hidden)
A1: Fecha Valuación | B1: =+CALC!B5 ->  | E1: Fecha Fin | F1: Dxv | G1: Plazo Cupon
A2: Vencimiento | B2: =+CALC!B4 -> 2042-11-13 | E2: 2013-12-19 | F2: =IF(OR(E2-$B$1<=0,E2>$B$2),"",E2-$B$1) -> 
A3: Tasa Cupón | B3: =+CALC!B6 -> 7.75 | D3: =IF(F3=MIN($F:$F),"VIG","") ->  | E3: 2014-06-19 | G3: =+E3-E2 -> 182
A4: Tasa Yield | B4: 6.87555796 | E4: 2014-12-18 | G4: 182 | H4: =IF(F4<=0,0,IF(F4=MAX($F:$F),$B$3/36000*G4*100+100,$B$3/36000*G4*100)) ->  | I4: =IF(F4="",0,H4/(1+$B$4*182/36000)^(F4/182)) -> 
A5: Precio Sucio | B5: =SUM(I:I) ->  | E5: 2015-06-18 | G5: 182
B6: =+B5-CALC!B15 ->  | E6: 2015-12-17 | G6: 182
E7: 2016-06-16 | G7: 182
E8: 2016-12-15 | G8: 182
E9: 2017-06-15 | G9: 182
E10: 2017-12-14 | G10: 182
E11: 2018-06-14 | G11: 182
E12: 2018-12-13 | G12: 182
E13: 2019-06-13 | G13: 182
E14: 2019-12-11 | G14: 181
E15: 2020-06-11 | G15: 183
E16: 2020-12-10 | G16: 182
E17: 2021-06-10 | G17: 182
E18: 2021-12-09 | G18: 182
E19: 2022-06-09 | G19: 182
E20: 2022-12-08 | G20: 182
E21: 2023-06-08 | G21: 182
E22: 2023-12-07 | G22: 182
E23: 2024-06-06 | G23: 182
E24: 2024-12-05 | G24: 182
E25: 2025-06-05 | G25: 182
E26: 2025-12-04 | G26: 182
E27: 2026-06-04 | G27: 182
E28: 2026-12-03 | G28: 182
E29: 2027-06-03 | G29: 182
E30: 2027-12-02 | G30: 182
E31: 2028-06-01 | G31: 182
E32: 2028-11-30 | G32: 182
E33: 2029-05-31 | G33: 182
E34: 2029-11-29 | F34: =IF(OR(E34-$B$1<=0,E34>$B$2),"",E34-$B$1) ->  | G34: 182
D35: =IF(F35=MIN($F:$F),"VIG","") ->  | E35: 2030-05-30 | G35: =+E35-E34 -> 182 | H35: =IF(F35<=0,0,IF(F35=MAX($F:$F),$B$3/36000*G35*100+100,$B$3/36000*G35*100)) ->  | I35: =IF(F35="",0,H35/(1+$B$4*182/36000)^(F35/182)) -> 
E36: 2030-11-28 | G36: 182
E37: 2031-05-29 | G37: 182
E38: 2031-11-27 | G38: 182
E39: 2032-05-27 | G39: 182
E40: 2032-11-25 | G40: 182
E41: 2033-05-26 | G41: 182
E42: 2033-11-24 | G42: 182
E43: 2034-05-25 | G43: 182
E44: 2034-11-23 | G44: 182
E45: 2035-05-24 | G45: 182
E46: 2035-11-22 | G46: 182
E47: 2036-05-22 | G47: 182
E48: 2036-11-20 | G48: 182
E49: 2037-05-21 | G49: 182
E50: 2037-11-19 | G50: 182
E51: 2038-05-20 | G51: 182
E52: 2038-11-18 | G52: 182
E53: 2039-05-19 | G53: 182
E54: 2039-11-17 | G54: 182
E55: 2040-05-17 | G55: 182
E56: 2040-11-15 | G56: 182
E57: 2041-05-16 | G57: 182
E58: 2041-11-14 | G58: 182
E59: 2042-05-15 | G59: 182
E60: 2042-11-13 | G60: 182

Sheet Información
A1: 1 | B1: 3.31 | E1: Contrato | F1: Vencimiento | G1: Cupón | H1: Contrato | I1: Vencimiento | J1: # Cupones
A2: 2 | B2: 3.29833333 | E2: DC24 | F2: 2024-12-05 | G2: 10 | H2: MR16 | I2: 2016-03-31 | J2: 0
A3: 3 | B3: 3.28666667 | E3: MY31 | F3: 2031-05-29 | G3: 7.75 | H3: JN16 | I3: 2016-06-30 | J3: 1
A4: 4 | B4: 3.275 | E4: DC18 | F4: 2018-12-13 | G4: 8.5 | H4: SP16 | I4: 2016-09-30 | J4: 1
A5: 5 | B5: 3.26333333 | E5: NV42 | F5: 2042-11-13 | G5: 7.75 | H5: DC16 | I5: 2016-12-30 | J5: 2
A6: 6 | B6: 3.25166667
A7: 7 | B7: 3.24
A8: 8 | B8: 3.24
A9: 9 | B9: 3.24
A10: 10 | B10: 3.24
A11: 11 | B11: 3.24
A12: 12 | B12: 3.24
A13: 13 | B13: 3.24
A14: 14 | B14: 3.24
A15: 15 | B15: 3.24
A16: 16 | B16: 3.24
A17: 17 | B17: 3.24
A18: 18 | B18: 3.24
A19: 19 | B19: 3.24
A20: 20 | B20: 3.24
A21: 21 | B21: 3.24
A22: 22 | B22: 3.24142857
A23: 23 | B23: 3.24285714
A24: 24 | B24: 3.24428571
A25: 25 | B25: 3.24571429
A26: 26 | B26: 3.24714286
A27: 27 | B27: 3.24857143
A28: 28 | B28: 3.25
A29: 29 | B29: 3.24920635
A30: 30 | B30: 3.2484127
A31: 31 | B31: 3.25315805
A32: 32 | B32: 3.2666504
A33: 33 | B33: 3.28539075
A34: 34 | B34: 3.3058791
A35: 35 | B35: 3.32461944
A36: 36 | B36: 3.33811179
A37: 37 | B37: 3.34285714
A38: 38 | B38: 3.34206349
A39: 39 | B39: 3.34126984
A40: 40 | B40: 3.34047619
A41: 41 | B41: 3.33968254
A42: 42 | B42: 3.33888889
A43: 43 | B43: 3.33809524
A44: 44 | B44: 3.33730159
A45: 45 | B45: 3.33650794
A46: 46 | B46: 3.33571429
A47: 47 | B47: 3.33492063
A48: 48 | B48: 3.33412698
A49: 49 | B49: 3.33333333
A50: 50 | B50: 3.33253968
A51: 51 | B51: 3.33174603
A52: 52 | B52: 3.33095238
A53: 53 | B53: 3.33015873
A54: 54 | B54: 3.32936508
A55: 55 | B55: 3.32857143
A56: 56 | B56: 3.32777778
A57: 57 | B57: 3.32698413
A58: 58 | B58: 3.32619048
A59: 59 | B59: 3.32595083
A60: 60 | B60: 3.32658617
A61: 61 | B61: 3.32774552
A62: 62 | B62: 3.32907987
A63: 63 | B63: 3.33023922
A64: 64 | B64: 3.33087457
A65: 65 | B65: 3.33063492
A66: 66 | B66: 3.32984127
A67: 67 | B67: 3.32904762
A68: 68 | B68: 3.32825397
A69: 69 | B69: 3.32746032
A70: 70 | B70: 3.32666667
A71: 71 | B71: 3.32587302
A72: 72 | B72: 3.32507937
A73: 73 | B73: 3.32373171
A74: 74 | B74: 3.32150906
A75: 75 | B75: 3.31876241
A76: 76 | B76: 3.31584076
A77: 77 | B77: 3.31309411
A78: 78 | B78: 3.31087146
A79: 79 | B79: 3.30952381
A80: 80 | B80: 3.30873016
A81: 81 | B81: 3.30793651
A82: 82 | B82: 3.30714286
A83: 83 | B83: 3.30634921
A84: 84 | B84: 3.30555556
A85: 85 | B85: 3.3047619
A86: 86 | B86: 3.30396825
A87: 87 | B87: 3.3062946
A88: 88 | B88: 3.31294095
A89: 89 | B89: 3.3210273
A90: 90 | B90: 3.32767365
A91: 91 | B91: 3.33
A92: 92 | B92: 3.3300102
A93: 93 | B93: 3.3291614
A94: 94 | B94: 3.32690561
A95: 95 | B95: 3.32371281
A96: 96 | B96: 3.32005101
A97: 97 | B97: 3.31638921
A98: 98 | B98: 3.31319642
A99: 99 | B99: 3.31094062
A100: 100 | B100: 3.31009182
A101: 101 | B101: 3.31010602
A102: 102 | B102: 3.31014122
A103: 103 | B103: 3.31022043
A104: 104 | B104: 3.31036563
A105: 105 | B105: 3.31059883
A106: 106 | B106: 3.31094003
A107: 107 | B107: 3.31141324
A108: 108 | B108: 3.31203944
A109: 109 | B109: 3.31284064
A110: 110 | B110: 3.31383784
A111: 111 | B111: 3.31505504
A112: 112 | B112: 3.31651125
A113: 113 | B113: 3.31823145
A114: 114 | B114: 3.32023465
A115: 115 | B115: 3.32226485
A116: 116 | B116: 3.32410306
A117: 117 | B117: 3.32583026
A118: 118 | B118: 3.32752546
A119: 119 | B119: 3.32926866
A120: 120 | B120: 3.33114087
A121: 121 | B121: 3.33322307
A122: 122 | B122: 3.33559327
A123: 123 | B123: 3.33833347
A124: 124 | B124: 3.34152267
A125: 125 | B125: 3.34524088
A126: 126 | B126: 3.34957008
A127: 127 | B127: 3.35458828
A128: 128 | B128: 3.36037748
A129: 129 | B129: 3.36709169
A130: 130 | B130: 3.37471289
A131: 131 | B131: 3.38305709
A132: 132 | B132: 3.39194429
A133: 133 | B133: 3.40119049
A134: 134 | B134: 3.4106137
A135: 135 | B135: 3.4200319
A136: 136 | B136: 3.4292641
A137: 137 | B137: 3.4381263
A138: 138 | B138: 3.44643651
A139: 139 | B139: 3.45401371
A140: 140 | B140: 3.46067491
A141: 141 | B141: 3.46623811
A142: 142 | B142: 3.47052031
A143: 143 | B143: 3.47374352
A144: 144 | B144: 3.47631372
A145: 145 | B145: 3.47832392
A146: 146 | B146: 3.47987112
A147: 147 | B147: 3.48104833
A148: 148 | B148: 3.48195153
A149: 149 | B149: 3.48267473
A150: 150 | B150: 3.48331293
A151: 151 | B151: 3.48396113
A152: 152 | B152: 3.48471334
A153: 153 | B153: 3.48566554
A154: 154 | B154: 3.48691074
A155: 155 | B155: 3.48854494
A156: 156 | B156: 3.49066315
A157: 157 | B157: 3.49317235
A158: 158 | B158: 3.49589255
A159: 159 | B159: 3.49878375
A160: 160 | B160: 3.50180896
A161: 161 | B161: 3.50492716
A162: 162 | B162: 3.50810036
A163: 163 | B163: 3.51129056
A164: 164 | B164: 3.51445676
A165: 165 | B165: 3.51756297
A166: 166 | B166: 3.52056717
A167: 167 | B167: 3.52343337
A168: 168 | B168: 3.52612057
A169: 169 | B169: 3.52859178
A170: 170 | B170: 3.53080598
A171: 171 | B171: 3.53294318
A172: 172 | B172: 3.53517338
A173: 173 | B173: 3.53744358
A174: 174 | B174: 3.53970079
A175: 175 | B175: 3.54189099
A176: 176 | B176: 3.54396219
A177: 177 | B177: 3.54586239
A178: 178 | B178: 3.5475366
A179: 179 | B179: 3.5489338
A180: 180 | B180: 3.55
A181: 181 | B181: 3.55066696
A182: 182 | B182: 3.55089791
A183: 183 | B183: 3.55089287
A184: 184 | B184: 3.55088782
A185: 185 | B185: 3.55092478
A186: 186 | B186: 3.55104473
A187: 187 | B187: 3.55124369
A188: 188 | B188: 3.55152164
A189: 189 | B189: 3.5518736
A190: 190 | B190: 3.55229756
A191: 191 | B191: 3.55279251
A192: 192 | B192: 3.55335447
A193: 193 | B193: 3.55398142
A194: 194 | B194: 3.55467138
A195: 195 | B195: 3.55542133
A196: 196 | B196: 3.55622829
A197: 197 | B197: 3.55709024
A198: 198 | B198: 3.5580052
A199: 199 | B199: 3.55896916
A200: 200 | B200: 3.55998111
... 1800 more rows

Sheet FUTUROS ESPECIFICOS
A1: Contrato | B1: YCash Bid | C1: YFut Bid | D1: Bid | E1: Ask | F1: Y F Ask | G1: YCash Ask | H1: Last | I1: Tasa Fut | J1: Tasa Cash | L1: BID | M1: ASK | N1: LAST | S1: Plazos | T1: DXV | U1: Fondeo
A2: ="DC18 "&Información!$H$2 -> DC18 MR16 | L2: =_xll.rtdValue(L$1,$A2,"EMD","MXN") ->  | M2: =_xll.rtdValue(M$1,$A2,"EMD","MXN") ->  | N2: =_xll.rtdValue(N$1,$A2,"EMD","MXN") ->  | P2: Fecha Valuación | S2: =+Información!H2 -> MR16 | T2: =VLOOKUP(S2,CTOS_FUT,2,0)-'FUTUROS ESPECIFICOS'!$P$4 -> 92 | U2: =VLOOKUP(T2,Información!$A:$B,2,0) -> 3.3300102
U3: 3.22
A4: ="DC18 "&Información!$H$3 -> DC18 JN16 | L4: =_xll.rtdValue(L$1,$A4,"EMD","MXN") ->  | M4: =_xll.rtdValue(M$1,$A4,"EMD","MXN") ->  | N4: =_xll.rtdValue(N$1,$A4,"EMD","MXN") ->  | P4: =WORKDAY(TODAY(),2,calendario!$A$1:$A$339) -> 2015-12-30 | S4: =+Información!H3 -> JN16 | T4: =VLOOKUP(S4,CTOS_FUT,2,0)-'FUTUROS ESPECIFICOS'!$P$4 -> 183 | U4: =VLOOKUP(T4,Información!$A:$B,2,0) -> 3.55089287
U5: 3.34588072
A6: ="DC18 "&Información!$H$4 -> DC18 SP16 | L6: =_xll.rtdValue(L$1,$A6,"EMD","MXN") ->  | M6: =_xll.rtdValue(M$1,$A6,"EMD","MXN") ->  | N6: =_xll.rtdValue(N$1,$A6,"EMD","MXN") ->  | S6: =+Información!H4 -> SP16 | T6: =VLOOKUP(S6,CTOS_FUT,2,0)-'FUTUROS ESPECIFICOS'!$P$4 -> 275 | U6: =VLOOKUP(T6,Información!$A:$B,2,0) -> 3.64187378
U7: 3.59151833
A8: ="DC18 "&Información!$H$5 -> DC18 DC16 | L8: =_xll.rtdValue(L$1,$A8,"EMD","MXN") ->  | M8: =_xll.rtdValue(M$1,$A8,"EMD","MXN") ->  | N8: =_xll.rtdValue(N$1,$A8,"EMD","MXN") ->  | S8: =+Información!H5 -> DC16 | T8: =VLOOKUP(S8,CTOS_FUT,2,0)-'FUTUROS ESPECIFICOS'!$P$4 -> 366 | U8: =VLOOKUP(T8,Información!$A:$B,2,0) -> 3.650352
U9: 3.60036767
A12: ="DC24 "&Información!$H$2 -> DC24 MR16 | L12: =_xll.rtdValue(L$1,$A12,"EMD","MXN") ->  | M12: =_xll.rtdValue(M$1,$A12,"EMD","MXN") ->  | N12: =_xll.rtdValue(N$1,$A12,"EMD","MXN") -> 
A14: ="DC24 "&Información!$H$3 -> DC24 JN16 | L14: =_xll.rtdValue(L$1,$A14,"EMD","MXN") ->  | M14: =_xll.rtdValue(M$1,$A14,"EMD","MXN") ->  | N14: =_xll.rtdValue(N$1,$A14,"EMD","MXN") -> 
A16: ="DC24 "&Información!$H$4 -> DC24 SP16 | L16: =_xll.rtdValue(L$1,$A16,"EMD","MXN") ->  | M16: =_xll.rtdValue(M$1,$A16,"EMD","MXN") ->  | N16: =_xll.rtdValue(N$1,$A16,"EMD","MXN") -> 
A18: ="DC24 "&Información!$H$5 -> DC24 DC16 | L18: =_xll.rtdValue(L$1,$A18,"EMD","MXN") ->  | M18: =_xll.rtdValue(M$1,$A18,"EMD","MXN") ->  | N18: =_xll.rtdValue(N$1,$A18,"EMD","MXN") -> 
A22: ="MY31 "&Información!$H$2 -> MY31 MR16 | L22: =_xll.rtdValue(L$1,$A22,"EMD","MXN") ->  | M22: =_xll.rtdValue(M$1,$A22,"EMD","MXN") ->  | N22: =_xll.rtdValue(N$1,$A22,"EMD","MXN") -> 
A24: ="MY31 "&Información!$H$3 -> MY31 JN16 | L24: =_xll.rtdValue(L$1,$A24,"EMD","MXN") ->  | M24: =_xll.rtdValue(M$1,$A24,"EMD","MXN") ->  | N24: =_xll.rtdValue(N$1,$A24,"EMD","MXN") -> 
A26: ="MY31 "&Información!$H$4 -> MY31 SP16 | L26: =_xll.rtdValue(L$1,$A26,"EMD","MXN") ->  | M26: =_xll.rtdValue(M$1,$A26,"EMD","MXN") ->  | N26: =_xll.rtdValue(N$1,$A26,"EMD","MXN") -> 
A28: ="MY31 "&Información!$H$5 -> MY31 DC16 | L28: =_xll.rtdValue(L$1,$A28,"EMD","MXN") ->  | M28: =_xll.rtdValue(M$1,$A28,"EMD","MXN") ->  | N28: =_xll.rtdValue(N$1,$A28,"EMD","MXN") -> 
A32: ="NV42 "&Información!$H$2 -> NV42 MR16 | L32: =_xll.rtdValue(L$1,$A32,"EMD","MXN") ->  | M32: =_xll.rtdValue(M$1,$A32,"EMD","MXN") ->  | N32: =_xll.rtdValue(N$1,$A32,"EMD","MXN") -> 
A34: ="NV42 "&Información!$H$3 -> NV42 JN16 | L34: =_xll.rtdValue(L$1,$A34,"EMD","MXN") ->  | M34: =_xll.rtdValue(M$1,$A34,"EMD","MXN") ->  | N34: =_xll.rtdValue(N$1,$A34,"EMD","MXN") -> 
A36: ="NV42 "&Información!$H$4 -> NV42 SP16 | L36: =_xll.rtdValue(L$1,$A36,"EMD","MXN") ->  | M36: =_xll.rtdValue(M$1,$A36,"EMD","MXN") ->  | N36: =_xll.rtdValue(N$1,$A36,"EMD","MXN") -> 
A38: ="NV42 "&Información!$H$5 -> NV42 DC16 | L38: =_xll.rtdValue(L$1,$A38,"EMD","MXN") ->  | M38: =_xll.rtdValue(M$1,$A38,"EMD","MXN") ->  | N38: =_xll.rtdValue(N$1,$A38,"EMD","MXN") -> 

Sheet calendario (hidden)
A1: 2015-01-01
A2: 2015-02-02
A3: 2015-03-16
A4: 2015-04-02
A5: 2015-04-03
A6: 2015-05-01
A7: 2015-09-16
A8: 2015-11-02
A9: 2015-11-16
A10: 2015-12-25
A11: 2016-01-01
A12: 2016-02-01
A13: 2016-03-21
A14: 2016-03-24
A15: 2016-03-25
A16: 2016-09-16
A17: 2016-11-02
A18: 2016-11-21
A19: 2016-12-12
A20: 2017-02-06
A21: 2017-03-20
A22: 2017-04-13
A23: 2017-04-14
A24: 2017-05-01
A25: 2017-11-02
A26: 2017-11-20
A27: 2017-12-12
A28: 2017-12-25
A29: 2018-01-01
A30: 2018-02-05
A31: 2018-03-19
A32: 2018-03-29
A33: 2018-03-30
A34: 2018-05-01
A35: 2018-11-02
A36: 2018-11-19
A37: 2018-12-12
A38: 2018-12-25
A39: 2019-01-01
A40: 2019-02-04
A41: 2019-03-18
A42: 2019-04-18
A43: 2019-04-19
A44: 2019-05-01
A45: 2019-09-16
A46: 2019-11-18
A47: 2019-12-12
A48: 2019-12-25
A49: 2020-01-01
A50: 2020-02-03
A51: 2020-03-16
A52: 2020-04-09
A53: 2020-04-10
A54: 2020-05-01
A55: 2020-09-16
A56: 2020-11-02
A57: 2020-11-16
A58: 2020-12-25
A59: 2021-01-01
A60: 2021-02-01
A61: 2021-03-15
A62: 2021-04-01
A63: 2021-04-02
A64: 2021-09-16
A65: 2021-11-02
A66: 2021-11-15
A67: 2022-02-07
A68: 2022-03-21
A69: 2022-04-14
A70: 2022-04-15
A71: 2022-09-16
A72: 2022-11-02
A73: 2022-11-21
A74: 2022-12-12
A75: 2023-02-06
A76: 2023-03-20
A77: 2023-04-06
A78: 2023-04-07
A79: 2023-05-01
A80: 2023-11-02
A81: 2023-11-20
A82: 2023-12-12
A83: 2023-12-25
A84: 2024-01-01
A85: 2024-02-05
A86: 2024-03-18
A87: 2024-03-28
A88: 2024-03-29
A89: 2024-05-01
A90: 2024-09-16
A91: 2024-11-18
A92: 2024-12-12
A93: 2024-12-25
A94: 2025-01-01
A95: 2025-02-03
A96: 2025-03-17
A97: 2025-04-17
A98: 2025-04-18
A99: 2025-05-01
A100: 2025-09-16
A101: 2025-11-17
A102: 2025-12-12
A103: 2025-12-25
A104: 2026-01-01
A105: 2026-02-02
A106: 2026-03-16
A107: 2026-04-02
A108: 2026-04-03
A109: 2026-05-01
A110: 2026-09-16
A111: 2026-11-02
A112: 2026-11-16
A113: 2026-12-25
A114: 2027-01-01
A115: 2027-02-01
A116: 2027-03-15
A117: 2027-03-25
A118: 2027-03-26
A119: 2027-09-16
A120: 2027-11-02
A121: 2027-11-15
A122: 2028-02-07
A123: 2028-03-20
A124: 2028-04-13
A125: 2028-04-14
A126: 2028-05-01
A127: 2028-11-02
A128: 2028-11-20
A129: 2028-12-12
A130: 2028-12-25
A131: 2029-01-01
A132: 2029-02-05
A133: 2029-03-19
A134: 2029-03-29
A135: 2029-03-30
A136: 2029-05-01
A137: 2029-11-02
A138: 2029-11-19
A139: 2029-12-12
A140: 2029-12-25
A141: 2030-01-01
A142: 2030-02-04
A143: 2030-03-18
A144: 2030-04-18
A145: 2030-04-19
A146: 2030-05-01
A147: 2030-09-16
A148: 2030-11-18
A149: 2030-12-12
A150: 2030-12-25
A151: 2031-01-01
A152: 2031-02-03
A153: 2031-03-17
A154: 2031-04-10
A155: 2031-04-11
A156: 2031-05-01
A157: 2031-09-16
A158: 2031-11-17
A159: 2031-12-12
A160: 2031-12-25
A161: 2032-01-01
A162: 2032-02-02
A163: 2032-03-15
A164: 2032-03-25
A165: 2032-03-26
A166: 2032-09-16
A167: 2032-11-02
A168: 2032-11-15
A169: 2033-02-07
A170: 2033-03-21
A171: 2033-04-14
A172: 2033-04-15
A173: 2033-09-16
A174: 2033-11-02
A175: 2033-11-21
A176: 2033-12-12
A177: 2034-02-06
A178: 2034-03-20
A179: 2034-04-06
A180: 2034-04-07
A181: 2034-05-01
A182: 2034-11-02
A183: 2034-11-20
A184: 2034-12-12
A185: 2034-12-25
A186: 2035-01-01
A187: 2035-02-05
A188: 2035-03-19
A189: 2035-03-22
A190: 2035-03-23
A191: 2035-05-01
A192: 2035-11-02
A193: 2035-11-19
A194: 2035-12-12
A195: 2035-12-25
A196: 2036-01-01
A197: 2036-02-04
A198: 2036-03-17
A199: 2036-04-10
A200: 2036-04-11
... 139 more rows
